bitfinex/quotes_BTCUSD_20250105
["timestamp","ask_amount","ask_price","bid_price","bid_amount"]
[1736116103812,0.1308,98592.0,98591.0,0.00676]
[1736116104165,0.14121063,98592.0,98591.0,0.00676]
[1736116104688,0.1308,98592.0,98591.0,0.00676]
[1736116104948,0.1308,98592.0,98590.0,0.5]
[1736116105384,0.1308,98592.0,98591.0,0.00676]
[1736116105776,0.182572,98591.0,98590.0,0.5]
[1736116105941,0.1308,98592.0,98590.0,0.50676]
[1736116106353,0.1288,98592.0,98590.0,0.50676]
[1736116106559,0.1288,98592.0,98590.0,0.00676]
[1736116106758,0.1308,98592.0,98590.0,0.00676]
[1736116112990,0.18139821,98592.0,98590.0,0.00676]
[1736116113382,0.1308,98592.0,98590.0,0.00676]
[1736116115967,0.1308,98592.0,98591.0,0.00676]
[1736116117559,0.1288,98592.0,98591.0,0.00676]
[1736116117759,0.1308,98592.0,98591.0,0.00676]
[1736116118134,0.182572,98591.0,98589.0,0.0001708]
[1736116118350,0.23317171,98591.0,98590.0,0.00676]
[1736116119609,0.23617171,98591.0,98590.0,0.00676]
[1736116119822,0.23617171,98591.0,98590.0,0.0069308]
[1736116120236,0.185572,98591.0,98590.0,0.0069308]
[1736116120656,0.188572,98591.0,98590.0,0.0069308]
[1736116121063,0.185572,98591.0,98590.0,0.0069308]
[1736116121503,0.188572,98591.0,98590.0,0.0069308]
[1736116126766,0.188572,98591.0,98590.0,0.0001708]
[1736116126998,0.188572,98591.0,98590.0,0.0069308]
[1736116128608,0.23420171,98591.0,98590.0,0.0069308]
[1736116129815,0.188572,98591.0,98590.0,0.0069308]
[1736116135287,0.006,98591.0,98590.0,0.0069308]
[1736116137997,0.003,98591.0,98590.0,0.0069308]
[1736116138200,4.931e-05,98593.0,98590.0,0.0069308]
[1736116138442,0.002,98591.0,98590.0,0.0069308]
[1736116139736,0.005,98591.0,98590.0,0.0069308]
[1736116139956,4.931e-05,98593.0,98590.0,0.0069308]
[1736116140332,0.003,98591.0,98590.0,0.0069308]
[1736116141063,0.00204931,98593.0,98590.0,0.0069308]
[1736116141520,0.00504931,98593.0,98590.0,0.0069308]
[1736116141725,0.00304931,98593.0,98590.0,0.0069308]
[1736116141938,0.002,98591.0,98590.0,0.0069308]
[1736116143151,0.003,98591.0,98590.0,0.0069308]
[1736116144305,0.005,98591.0,98590.0,0.0069308]
[1736116146627,0.005,98591.0,98590.0,0.0299308]
[1736116146842,0.005,98591.0,98590.0,0.31191712]
[1736116147487,0.005,98591.0,98590.0,0.35831712]
[1736116149826,0.002,98591.0,98590.0,0.35831712]
[1736116150033,0.003,98591.0,98590.0,0.35831712]
[1736116150378,4.931e-05,98593.0,98592.0,0.078]
[1736116150630,4.931e-05,98593.0,98592.0,0.20498632]
[1736116152770,4.931e-05,98593.0,98592.0,0.20698632]
[1736116153271,4.931e-05,98593.0,98592.0,0.20498632]
[1736116153684,4.931e-05,98593.0,98592.0,0.20798632]
[1736116154304,4.931e-05,98593.0,98592.0,0.20898632]
[1736116163128,4.931e-05,98593.0,98592.0,0.30898632]
[1736116163912,4.931e-05,98593.0,98592.0,0.30598632]
[1736116164228,4.931e-05,98593.0,98592.0,0.30698632]
[1736116166366,4.931e-05,98593.0,98592.0,0.30715712]
[1736116177718,4.931e-05,98593.0,98592.0,0.31391712]
[1736116182552,4.931e-05,98593.0,98592.0,0.33414361]
[1736116188334,8.54e-05,98596.0,98592.0,0.33414361]
[1736116188335,8.54e-05,98596.0,98593.0,0.02395069]
[1736116188534,8.54e-05,98596.0,98595.0,0.023]
[1736116188736,8.54e-05,98596.0,98595.0,0.12698632]
[1736116192108,8.54e-05,98596.0,98595.0,0.13474632]
[1736116207300,8.54e-05,98596.0,98595.0,0.001]
[1736116207503,0.1826484,98596.0,98595.0,0.00776]
[1736116209236,8.54e-05,98596.0,98595.0,0.00776]
[1736116211524,0.0010854,98596.0,98595.0,0.00776]
[1736116212292,0.0010854,98596.0,98595.0,0.00676]
[1736116214760,0.00506,98600.0,98596.0,0.1323146]
[1736116216094,0.00706,98600.0,98596.0,0.1323146]
[1736116216850,0.00806,98600.0,98596.0,0.1323146]
[1736116217984,0.00706,98600.0,98596.0,0.1323146]
[1736116218326,0.00806,98600.0,98596.0,0.1323146]
[1736116218529,0.00606,98600.0,98596.0,0.1323146]
[1736116218848,0.00706,98600.0,98596.0,0.1323146]
[1736116224765,0.00706,98600.0,98597.0,0.00676]
[1736116225583,0.00606,98600.0,98597.0,0.00676]
[1736116225845,0.00706,98600.0,98597.0,0.00676]
[1736116226047,0.00606,98600.0,98597.0,0.00676]
[1736116226346,0.00706,98600.0,98597.0,0.00676]
[1736116227011,0.0071454,98600.0,98597.0,0.00676]
[1736116236400,0.0071454,98600.0,98596.0,0.1323146]
[1736116236605,0.0071454,98600.0,98598.0,0.00676]
[1736116237339,0.0061454,98600.0,98598.0,0.00676]
[1736116237646,0.0071454,98600.0,98598.0,0.00676]
[1736116237868,0.0061454,98600.0,98598.0,0.00676]
[1736116238275,0.0071454,98600.0,98598.0,0.00676]
[1736116238517,0.0061454,98600.0,98598.0,0.00676]
[1736116239079,0.0071454,98600.0,98598.0,0.00676]
[1736116241890,0.0071454,98600.0,98596.0,0.1324854]
[1736116242128,0.03170552,98599.0,98597.0,0.00676]
[1736116242299,0.0071454,98600.0,98597.0,0.00676]
[1736116242731,0.0061454,98600.0,98597.0,0.00676]
[1736116243873,0.0071454,98600.0,98597.0,0.00676]
[1736116245971,0.0071454,98600.0,98598.0,0.00676]
[1736116246804,0.0061454,98600.0,98598.0,0.00676]
[1736116247662,0.0071454,98600.0,98598.0,0.00676]
[1736116248103,0.0071454,98600.0,98599.0,0.00676]
[1736116248104,0.0061454,98600.0,98599.0,0.00676]
[1736116248308,0.0071454,98600.0,98599.0,0.00676]
[1736116248941,0.0071454,98600.0,98596.0,0.10318356]
[1736116249089,0.365114,98599.0,98597.0,0.00676]
[1736116249603,0.365114,98599.0,98598.0,0.00676]
[1736116250425,0.366114,98599.0,98598.0,0.00676]
[1736116250805,0.365114,98599.0,98598.0,0.00676]
[1736116251643,0.366114,98599.0,98598.0,0.00676]
[1736116251849,0.365114,98599.0,98598.0,0.00676]
[1736116252087,0.366114,98599.0,98598.0,0.00676]
[1736116252572,0.41718635,98599.0,98598.0,0.00676]
[1736116252779,0.41818635,98599.0,98598.0,0.00676]
[1736116255715,0.367114,98599.0,98598.0,0.00676]
[1736116262574,0.367114,98599.0,98598.0,0.08916]
[1736116263390,0.367114,98599.0,98598.0,0.00676]
[1736116265909,0.184557,98599.0,98598.0,0.00676]
[1736116275569,0.1846424,98599.0,98598.0,0.00676]
[1736116280931,0.1846424,98599.0,98596.0,0.09994356]
[1736116281136,0.3671994,98599.0,98597.0,0.00676]
[1736116281863,0.3661994,98599.0,98597.0,0.00676]
[1736116282071,0.45632305,98599.0,98598.0,0.00676]
[1736116282439,0.45632305,98599.0,98596.0,0.09994356]
[1736116282646,0.45632305,98599.0,98597.0,0.00676]
[1736116283096,0.3651994,98599.0,98597.0,0.00676]
[1736116283454,0.3661994,98599.0,98597.0,0.00676]
[1736116283659,0.3671994,98599.0,98597.0,0.00676]
[1736116284093,0.3661994,98599.0,98597.0,0.00676]
[1736116284431,0.45732305,98599.0,98597.0,0.00676]
[1736116284848,0.45832305,98599.0,98597.0,0.00676]
[1736116292287,0.53900487,98599.0,98597.0,0.00676]
[1736116292768,0.45832305,98599.0,98597.0,0.00676]
[1736116294120,0.09112365,98598.0,98597.0,0.00676]
[1736116294288,0.09112365,98598.0,98596.0,0.09994356]
[1736116294494,0.182561,98597.0,98596.0,0.09994356]
[1736116294699,0.182561,98597.0,98596.0,0.10670356]
[1736116296030,0.09212365,98598.0,98596.0,0.10670356]
[1736116296653,0.182561,98597.0,98596.0,0.10670356]
[1736116297519,0.183561,98597.0,98596.0,0.10670356]
[1736116300127,0.19380231,98597.0,98596.0,0.10670356]
[1736116305813,0.19380231,98597.0,98596.0,0.09994356]
[1736116305959,0.19380231,98597.0,98596.0,0.10670356]
[1736116306373,0.19380231,98597.0,98596.0,0.17894356]
[1736116306669,0.19380231,98597.0,98596.0,0.18570356]
[1736116306869,0.183561,98597.0,98596.0,0.18570356]
[1736116307324,0.27468465,98597.0,98596.0,0.18570356]
[1736116308133,0.183561,98597.0,98596.0,0.18570356]
[1736116310917,0.1836464,98597.0,98596.0,0.18570356]
[1736116311404,0.1836464,98597.0,98596.0,0.10670356]
[1736116314960,0.1836464,98597.0,98596.0,0.09994356]
[1736116315163,0.1836464,98597.0,98596.0,0.10670356]
[1736116321501,0.1836464,98597.0,98596.0,0.18970356]
[1736116323853,0.1836464,98597.0,98596.0,0.10670356]
[1736116339063,0.1836464,98597.0,98596.0,0.18790356]
[1736116341162,0.0010854,98597.0,98596.0,0.18790356]
[1736116346014,0.0010854,98597.0,98596.0,0.18114356]
[1736116346221,0.0010854,98597.0,98596.0,0.18790356]
[1736116352104,0.09626905,98600.0,98596.0,0.18790356]
[1736116352807,0.182558,98599.0,98596.0,0.18790356]
[1736116353992,0.183558,98599.0,98596.0,0.18790356]
[1736116354211,0.184558,98599.0,98596.0,0.18790356]
[1736116356102,0.367116,98599.0,98596.0,0.18790356]
[1736116359119,0.3672014,98599.0,98596.0,0.18790356]
[1736116361094,0.3672014,98599.0,98597.0,0.00676]
[1736116362035,0.0882,98597.0,98596.0,0.18114356]
[1736116362236,0.0882,98597.0,98596.0,0.18790356]
[1736116365659,0.0902,98597.0,98596.0,0.18790356]
[1736116372039,0.0902854,98597.0,98596.0,0.18790356]
[1736116378061,0.0902854,98597.0,98596.0,0.18114356]
[1736116378294,0.0902854,98597.0,98596.0,0.18790356]
[1736116388118,0.0902854,98597.0,98596.0,0.28790356]
[1736116388687,0.0902854,98597.0,98596.0,0.28114356]
[1736116388888,0.0902854,98597.0,98596.0,0.28790356]
[1736116406733,0.0902854,98597.0,98596.0,0.28114356]
[1736116406948,0.0902854,98597.0,98596.0,0.28790356]
[1736116411848,0.0902854,98597.0,98596.0,0.31090356]
[1736116414089,0.0902854,98597.0,98596.0,0.41090356]
[1736116419832,0.0902854,98597.0,98596.0,0.40414356]
[1736116419981,0.0902854,98597.0,98596.0,0.41090356]
[1736116426168,0.0902854,98597.0,98596.0,0.40414356]
[1736116426350,0.0902854,98597.0,98596.0,0.41090356]
[1736116428461,0.09003075,98597.0,98596.0,0.41090356]
[1736116431458,0.27259175,98597.0,98596.0,0.32970356]
[1736116433243,0.09003075,98597.0,98596.0,0.32970356]
[1736116436077,0.09003075,98597.0,98596.0,0.41250356]
[1736116438439,0.08990833,98597.0,98596.0,0.41250356]
[1736116446315,0.08965299,98597.0,98596.0,0.41250356]
[1736116453972,0.08965299,98597.0,98596.0,0.32970356]
[1736116461839,0.08965299,98597.0,98596.0,0.32294356]
[1736116462041,0.08965299,98597.0,98596.0,0.32970356]
[1736116469039,0.08965299,98597.0,98596.0,0.32294356]
[1736116469267,0.08965299,98597.0,98596.0,0.32970356]
[1736116494533,0.08965299,98597.0,98596.0,0.40920356]
[1736116498841,0.08965299,98597.0,98596.0,0.32970356]
[1736116499424,0.08965299,98597.0,98596.0,0.40910356]
[1736116499623,0.08965299,98597.0,98596.0,0.32970356]
[1736116501070,0.27221399,98597.0,98596.0,0.19994356]
[1736116501217,0.27221399,98597.0,98596.0,0.20670356]
[1736116507417,0.08965299,98597.0,98596.0,0.20670356]
[1736116511606,0.27221399,98597.0,98596.0,0.20670356]
[1736116512405,0.27221399,98597.0,98596.0,0.19994356]
[1736116512612,0.27221399,98597.0,98596.0,0.20670356]
[1736116519217,0.08965299,98597.0,98596.0,0.20670356]
[1736116520593,0.08965299,98597.0,98596.0,0.19994356]
[1736116520847,0.08965299,98597.0,98596.0,0.20670356]
[1736116521904,0.08965299,98597.0,98596.0,0.28650356]
[1736116522105,0.08965299,98597.0,98596.0,0.20670356]
[1736116543181,0.08965299,98597.0,98596.0,0.45448988]
[1736116543383,0.08965299,98597.0,98596.0,0.70448988]
[1736116544016,0.08865299,98597.0,98596.0,0.70448988]
[1736116544742,0.08765299,98597.0,98596.0,0.70448988]
[1736116545141,0.08765299,98597.0,98596.0,0.70548988]
[1736116545355,0.08765299,98597.0,98596.0,1.05156677]
[1736116546095,0.08765299,98597.0,98596.0,1.05056677]
[1736116546726,0.08765299,98597.0,98596.0,1.05156677]
[1736116546851,0.08765299,98597.0,98596.0,1.04123075]
[1736116547884,0.08765299,98597.0,98596.0,1.04523075]
[1736116548522,0.08765299,98597.0,98596.0,1.03847075]
[1736116548714,0.08765299,98597.0,98596.0,1.04523075]
[1736116550334,0.08765299,98597.0,98596.0,0.70948988]
[1736116550723,0.08765299,98597.0,98596.0,0.70272988]
[1736116550925,0.08765299,98597.0,98596.0,0.70948988]
[1736116551643,0.08765299,98597.0,98596.0,0.8003483]
[1736116557417,0.08765299,98597.0,98596.0,0.70948988]
[1736116564232,0.08765299,98597.0,98596.0,0.8003483]
[1736116566441,0.08765299,98597.0,98596.0,0.70948988]
[1736116578695,0.08765299,98597.0,98596.0,0.80031027]
[1736116580872,0.08765299,98597.0,98596.0,0.70948988]
[1736116584565,0.08765299,98597.0,98596.0,1.04508557]
[1736116586818,0.08765299,98597.0,98596.0,1.2268102]
[1736116587636,0.08765299,98597.0,98596.0,1.04508557]
[1736116594190,0.08765299,98597.0,98596.0,1.03832557]
[1736116594407,0.08765299,98597.0,98596.0,1.04508557]
[1736116619069,0.08765299,98597.0,98596.0,0.99928557]
[1736116626530,0.08765299,98597.0,98596.0,0.99252557]
[1736116626741,0.08765299,98597.0,98596.0,0.99928557]
[1736116627938,0.08564386,98597.0,98596.0,0.99928557]
[1736116645623,0.08564386,98597.0,98596.0,1.18184857]
[1736116661584,0.08564386,98597.0,98596.0,1.22744857]
[1736116661789,0.08564386,98597.0,98596.0,1.32744857]
[1736116662411,0.08564386,98597.0,98596.0,1.32644857]
[1736116662798,0.08564386,98597.0,98596.0,1.32244857]
[1736116663411,0.08564386,98597.0,98596.0,1.33144857]
[1736116663618,8.54e-05,98599.0,98598.0,0.584259]
[1736116663770,8.54e-05,98599.0,98598.0,0.68824532]
[1736116664787,8.54e-05,98599.0,98598.0,0.69124532]
[1736116665190,8.54e-05,98599.0,98598.0,1.02684101]
[1736116666627,8.54e-05,98599.0,98598.0,1.13584101]
[1736116668498,8.54e-05,98599.0,98598.0,1.14620567]
[1736116671683,8.54e-05,98599.0,98598.0,1.68980567]
[1736116674831,8.54e-05,98599.0,98598.0,1.68680567]
[1736116675182,8.54e-05,98599.0,98598.0,1.69080567]
[1736116675389,8.54e-05,98599.0,98598.0,1.68180567]
[1736116675588,8.54e-05,98599.0,98598.0,1.67780567]
[1736116675794,8.54e-05,98599.0,98598.0,1.68680567]
[1736116675998,8.54e-05,98599.0,98598.0,1.69080567]
[1736116677020,8.54e-05,98599.0,98598.0,1.68180567]
[1736116677218,0.0051454,98600.0,98599.0,0.373]
[1736116677476,0.0051454,98600.0,98599.0,0.60058632]
[1736116677674,0.0051454,98600.0,98599.0,1.14418632]
[1736116678445,8.54e-05,98613.0,98612.0,0.1]
[1736116678683,0.00013469,98613.0,98612.0,0.45478632]
[1736116680097,0.00013469,98613.0,98612.0,0.46078632]
[1736116680535,0.00013469,98613.0,98612.0,0.79838201]
[1736116682877,0.00013469,98613.0,98612.0,0.84748201]
[1736116683999,0.00013469,98613.0,98612.0,0.87753532]
[1736116689343,0.00013469,98613.0,98612.0,0.88429532]
[1736116694904,0.0598157,98634.0,98613.0,0.173]
[1736116695105,0.00023468,98629.0,98628.0,0.205503]
[1736116695319,0.00023468,98629.0,98628.0,0.30948932]
[1736116696135,0.00023468,98629.0,98628.0,0.40948932]
[1736116696315,0.00023468,98629.0,98628.0,0.55948932]
[1736116696649,0.00023468,98629.0,98628.0,0.56048932]
[1736116698861,0.00023468,98629.0,98628.0,0.56724932]
[1736116703545,0.00023468,98629.0,98628.0,0.58726378]
[1736116703907,0.00023468,98629.0,98628.0,0.59767324]
[1736116705551,0.00023468,98629.0,98628.0,0.73385326]
[1736116707103,0.00023468,98629.0,98628.0,0.93308624]
[1736116708474,0.00023468,98629.0,98628.0,1.11465961]
[1736116710443,0.00023468,98629.0,98628.0,0.93308624]
[1736116713800,0.00023468,98629.0,98628.0,1.16005295]
[1736116714397,0.00023468,98629.0,98628.0,1.15329295]
[1736116714599,0.00023468,98629.0,98628.0,1.16005295]
[1736116717412,0.00023468,98629.0,98628.0,0.93308624]
[1736116721165,0.00023468,98629.0,98628.0,0.93208624]
[1736116721416,0.00023468,98629.0,98628.0,0.93308624]
[1736116724283,0.00023468,98629.0,98628.0,0.93208624]
[1736116724961,0.00023468,98629.0,98628.0,0.93308624]
[1736116733119,0.00023468,98629.0,98628.0,1.05928624]
[1736116734111,0.00023468,98629.0,98628.0,1.05828624]
[1736116734513,0.00023468,98629.0,98628.0,1.06228624]
[1736116734728,0.00023468,98629.0,98628.0,1.05928624]
[1736116735268,0.00023468,98629.0,98628.0,1.06028624]
[1736116735829,0.00023468,98629.0,98628.0,1.05828624]
[1736116736029,0.00023468,98629.0,98628.0,1.33077034]
[1736116736214,0.00023468,98629.0,98628.0,1.32401034]
[1736116736415,0.00023468,98629.0,98628.0,1.33077034]
[1736116737151,0.00023468,98629.0,98628.0,1.33677034]
[1736116737530,0.00023468,98629.0,98628.0,1.33877034]
[1736116738321,0.00023468,98629.0,98628.0,1.06628624]
[1736116748261,0.00023468,98629.0,98628.0,0.73087324]
[1736116751798,0.00023468,98629.0,98628.0,0.72411324]
[1736116752010,0.00023468,98629.0,98628.0,0.73087324]
[1736116752809,0.0099083,98648.0,98628.0,0.65517024]
[1736116753011,0.0099083,98648.0,98647.0,0.3]
[1736116753209,8.54e-05,98680.0,98668.0,0.2]
[1736116753411,0.0001493,98669.0,98668.0,1.24017532]
[1736116753637,8.54e-05,98680.0,98679.0,0.35]
[1736116753979,2.9e-07,98680.0,98679.0,1.46719532]
[1736116754316,4.4e-07,98684.0,98683.0,1.26138]
[1736116754525,4.968e-05,98684.0,98683.0,1.36536632]
[1736116754720,4.968e-05,98684.0,98683.0,1.38836632]
[1736116755106,4.968e-05,98684.0,98683.0,1.32738632]
[1736116755309,0.0149189,98703.0,98694.0,0.482381]
[1736116755553,0.0149189,98703.0,98694.0,0.82180732]
[1736116756620,0.0149189,98703.0,98694.0,0.53636732]
[1736116756856,0.0149189,98703.0,98694.0,0.11070632]
[1736116757132,0.0149189,98703.0,98693.0,0.1]
[1736116757377,0.0149189,98703.0,98681.0,0.5436]
[1736116757378,0.0149189,98703.0,98694.0,0.54527605]
[1736116757785,0.0149189,98703.0,98694.0,0.54427605]
[1736116757989,0.0149189,98703.0,98694.0,0.21370632]
[1736116758197,0.0149189,98703.0,98699.0,0.38635832]
[1736116758369,0.0149189,98703.0,98699.0,0.55935832]
[1736116758811,0.0049189,98703.0,98699.0,0.55935832]
[1736116759011,0.0049189,98703.0,98702.0,0.47698632]
[1736116760163,0.0049189,98703.0,98702.0,1.02058632]
[1736116760363,0.03626667,98714.0,98708.0,0.45]
[1736116760544,0.03626667,98714.0,98708.0,0.57698632]
[1736116761260,0.03626667,98714.0,98708.0,1.04486329]
[1736116761703,0.03626667,98714.0,98711.0,0.373]
[1736116761908,0.03626667,98714.0,98711.0,0.47698632]
[1736116764388,0.03626667,98714.0,98711.0,0.48598632]
[1736116764597,0.03626667,98714.0,98711.0,1.02258632]
[1736116764809,0.03626667,98714.0,98711.0,1.02058632]
[1736116765036,0.03626667,98714.0,98711.0,1.02658632]
[1736116765243,0.03626667,98714.0,98711.0,1.02858632]
[1736116765860,0.03626667,98714.0,98711.0,1.02258632]
[1736116766047,0.03626667,98714.0,98711.0,1.02958632]
[1736116766403,0.03626667,98714.0,98711.0,1.02758632]
[1736116766603,0.03626667,98714.0,98711.0,1.02958632]
[1736116766999,0.03626667,98714.0,98711.0,1.02758632]
[1736116767469,0.03626667,98714.0,98711.0,1.05161563]
[1736116767777,0.01035206,98714.0,98713.0,0.373]
[1736116767910,0.01049983,98714.0,98713.0,0.47698632]
[1736116768720,0.0001,98729.0,98727.0,0.1]
[1736116768950,0.0001,98729.0,98727.0,0.56602632]
[1736116771208,0.0001,98729.0,98727.0,0.56702632]
[1736116771403,0.0001,98729.0,98727.0,0.56030632]
[1736116771550,0.0001,98729.0,98727.0,0.56702632]
[1736116772669,0.0001,98729.0,98727.0,1.21062632]
[1736116772881,0.00106115,98734.0,98733.0,0.45]
[1736116773091,0.0001,98749.0,98738.0,0.373]
[1736116773315,0.0001,98749.0,98748.0,0.739082]
[1736116773566,0.02070013,98806.0,98791.0,0.1]
[1736116773732,0.02070013,98806.0,98792.0,0.11070632]
[1736116773991,0.0049656,98794.0,98792.0,0.11070632]
[1736116774235,0.01549737,98802.0,98793.0,0.1]
[1736116774453,0.01549737,98802.0,98801.0,0.1]
[1736116774670,0.01549737,98802.0,98801.0,0.20398632]
[1736116775810,0.01549737,98802.0,98801.0,0.10398632]
[1736116776218,0.01549737,98802.0,98801.0,0.20398632]
[1736116776435,0.01549737,98802.0,98801.0,0.10398632]
[1736116776820,0.01549737,98802.0,98801.0,0.001]
[1736116777026,0.01549737,98802.0,98801.0,0.00704]
[1736116777236,0.01549737,98802.0,98787.0,0.001]
[1736116777450,0.29767937,98802.0,98801.0,0.001]
[1736116777595,0.19767937,98802.0,98801.0,0.001]
[1736116778152,0.182193,98797.0,98790.0,0.1]
[1736116778324,0.01549737,98802.0,98801.0,0.1]
[1736116778536,0.01549737,98802.0,98801.0,0.20398632]
[1736116778744,0.01549737,98802.0,98801.0,0.21102632]
[1736116779548,0.01549737,98802.0,98801.0,0.11102632]
[1736116780128,0.01549737,98802.0,98801.0,0.00704]
[1736116780583,0.01549737,98802.0,98801.0,0.00804]
[1736116780792,0.01549737,98802.0,98801.0,0.11202632]
[1736116781029,0.01549737,98802.0,98801.0,0.11102632]
[1736116781250,0.01549737,98802.0,98801.0,0.11202632]
[1736116781443,0.01549737,98802.0,98801.0,0.11102632]
[1736116781649,0.01549737,98802.0,98801.0,0.00704]
[1736116781863,0.19767937,98802.0,98801.0,0.11202632]
[1736116782501,0.19767937,98802.0,98801.0,0.11102632]
[1736116783328,0.19767937,98802.0,98787.0,0.001]
[1736116783530,0.182206,98790.0,98788.0,0.00704]
[1736116783742,0.364412,98790.0,98787.0,0.001]
[1736116783975,0.364412,98790.0,98789.0,0.00704]
[1736116784402,0.364412,98790.0,98787.0,0.002]
[1736116784606,0.364412,98790.0,98789.0,0.00704]
[1736116785535,0.364412,98790.0,98787.0,0.002]
[1736116785737,0.182208,98788.0,98787.0,0.002]
[1736116787750,0.19164608,98788.0,98787.0,0.002]
[1736116787989,0.19164608,98788.0,98787.0,0.001]
[1736116788705,0.18664608,98788.0,98787.0,0.001]
[1736116789112,0.19064608,98788.0,98787.0,0.001]
[1736116789332,0.19964608,98788.0,98787.0,0.002]
[1736116792929,0.19564608,98788.0,98787.0,0.002]
[1736116793141,0.19964608,98788.0,98787.0,0.002]
[1736116793340,0.19964608,98788.0,98787.0,0.0021706]
[1736116793955,0.19064608,98788.0,98787.0,0.0011706]
[1736116794429,0.19868608,98788.0,98787.0,0.0021706]
[1736116794636,0.29868608,98788.0,98787.0,0.0021706]
[1736116794943,0.29468608,98788.0,98787.0,0.0021706]
[1736116795085,0.28668608,98788.0,98787.0,0.0011706]
[1736116795298,0.29068608,98788.0,98787.0,0.0011706]
[1736116795483,0.29068608,98788.0,98787.0,0.0021706]
[1736116795484,0.29868608,98788.0,98787.0,0.0021706]
[1736116796102,0.29468608,98788.0,98787.0,0.0021706]
[1736116796507,0.29868608,98788.0,98787.0,0.0021706]
[1736116797018,0.29068608,98788.0,98787.0,0.0011706]
[1736116797223,0.29068608,98788.0,98787.0,0.0021706]
[1736116797466,0.29768608,98788.0,98787.0,0.0021706]
[1736116799770,0.29368608,98788.0,98787.0,0.0021706]
[1736116799986,0.19768608,98788.0,98787.0,0.0021706]
[1736116800209,0.19068608,98788.0,98787.0,0.0011706]
[1736116800932,0.19768608,98788.0,98787.0,0.0021706]
[1736116801355,0.19368608,98788.0,98787.0,0.0021706]
[1736116801580,0.19068608,98788.0,98787.0,0.0011706]
[1736116801914,0.19768608,98788.0,98787.0,0.0021706]
[1736116802132,0.18668608,98788.0,98787.0,0.0011706]
[1736116802352,0.19068608,98788.0,98787.0,0.0011706]
[1736116802779,0.18668608,98788.0,98787.0,0.0011706]
[1736116803200,0.19068608,98788.0,98787.0,0.0011706]
[1736116803620,0.19768608,98788.0,98787.0,0.0021706]
[1736116804460,0.18668608,98788.0,98787.0,0.0011706]
[1736116804655,0.19068608,98788.0,98787.0,0.0011706]
[1736116804877,0.19768608,98788.0,98787.0,0.0021706]
[1736116805071,0.19368608,98788.0,98787.0,0.0011706]
[1736116805616,0.20468608,98788.0,98787.0,0.0021706]
[1736116806096,0.20068608,98788.0,98787.0,0.0021706]
[1736116806579,0.20468608,98788.0,98787.0,0.0021706]
[1736116807061,0.22224342,98788.0,98787.0,0.0011706]
[1736116807307,0.22924342,98788.0,98787.0,0.0021706]
[1736116807548,0.22224342,98788.0,98787.0,0.0011706]
[1736116807741,0.21824342,98788.0,98787.0,0.0011706]
[1736116807995,0.22524342,98788.0,98787.0,0.0021706]
[1736116808463,0.22924342,98788.0,98787.0,0.0021706]
[1736116808933,0.22524342,98788.0,98787.0,0.0021706]
[1736116809373,0.22924342,98788.0,98787.0,0.0021706]
[1736116812870,0.22927566,98788.0,98787.0,0.0021706]
[1736116818461,0.23958439,98788.0,98787.0,0.0021706]
[1736116821492,0.33030238,98788.0,98787.0,0.0021706]
[1736116822576,0.23958439,98788.0,98787.0,0.0021706]
[1736116824285,0.22927566,98788.0,98787.0,0.0021706]
[1736116827134,0.36535265,98788.0,98787.0,0.0021706]
[1736116828177,0.22927566,98788.0,98787.0,0.0021706]
[1736116828380,0.22527566,98788.0,98787.0,0.0021706]
[1736116828997,0.23547402,98788.0,98787.0,0.0021706]
[1736116829220,0.22847402,98788.0,98787.0,0.0011706]
[1736116829640,0.24247402,98788.0,98787.0,0.0021706]
[1736116829841,0.23347402,98788.0,98787.0,0.0011706]
[1736116830256,0.23747402,98788.0,98787.0,0.0021706]
[1736116830465,0.23347402,98788.0,98787.0,0.0011706]
[1736116830647,0.25647402,98788.0,98787.0,0.0011706]
[1736116830847,0.39357402,98788.0,98787.0,0.0011706]
[1736116831069,0.59256034,98788.0,98787.0,0.0011706]
[1736116831213,0.83736227,98788.0,98787.0,6e-07]
[1736116831408,0.84236227,98788.0,98787.0,6e-07]
[1736116831613,0.74756034,98788.0,98787.0,6e-07]
[1736116832222,0.73856034,98788.0,98787.0,6e-07]
[1736116832639,0.74756034,98788.0,98787.0,6e-07]
[1736116832844,0.18225,98765.0,98764.0,0.00712]
[1736116833253,0.18697922,98765.0,98764.0,0.00712]
[1736116833449,0.18697922,98765.0,98753.0,0.0778]
[1736116833652,0.182264,98758.0,98754.0,0.00712]
[1736116834077,0.18241177,98758.0,98753.0,0.0778]
[1736116834247,0.0047292,98757.0,98755.0,0.00712]
[1736116835003,0.0047292,98757.0,98756.0,0.00712]
[1736116835429,0.182267,98756.0,98753.0,0.0778]
[1736116835629,0.00472934,98755.0,98754.0,0.00712]
[1736116836232,0.00472934,98755.0,98744.0,0.0823]
[1736116836376,0.364542,98754.0,98745.0,0.00712]
[1736116836577,0.182279,98750.0,98745.0,0.00712]
[1736116836980,0.00470264,98749.0,98745.0,0.00712]
[1736116837432,0.00470264,98749.0,98736.0,0.1]
[1736116837583,0.00470264,98749.0,98746.0,0.00704]
[1736116837785,0.00469316,98748.0,98746.0,0.00704]
[1736116837986,0.182284,98747.0,98746.0,0.00704]
[1736116838217,0.00469322,98747.0,98746.0,0.00704]
[1736116838443,0.001,98749.0,98746.0,0.00704]
[1736116838597,0.00469321,98748.0,98746.0,0.00704]
[1736116839011,0.01169321,98748.0,98746.0,0.00804]
[1736116839232,0.01169321,98748.0,98746.0,0.00704]
[1736116839651,0.01169321,98748.0,98746.0,0.00804]
[1736116839855,0.003,98747.0,98746.0,0.00704]
[1736116840044,0.00769322,98747.0,98746.0,0.00704]
[1736116840257,0.00769322,98747.0,98746.0,0.00804]
[1736116840662,0.00469322,98747.0,98746.0,0.00804]
[1736116841677,0.00769322,98747.0,98746.0,0.00704]
[1736116841879,0.01369322,98747.0,98746.0,0.00704]
[1736116844891,0.01369322,98747.0,98746.0,0.0059]
[1736116845652,0.01369322,98747.0,98746.0,0.00704]
[1736116845855,0.01369322,98747.0,98745.0,0.00704]
[1736116846881,0.01069322,98747.0,98745.0,0.00704]
[1736116847089,0.01369322,98747.0,98745.0,0.00704]
[1736116847770,0.00769322,98747.0,98745.0,0.00704]
[1736116847975,0.01369322,98747.0,98745.0,0.00804]
[1736116848280,0.01369322,98747.0,98745.0,0.001]
[1736116848467,0.01369322,98747.0,98743.0,0.00519407]
[1736116849542,0.01069322,98747.0,98743.0,0.00519407]
[1736116849745,0.01369322,98747.0,98743.0,0.00519407]
[1736116849963,0.01005126,98751.0,98743.0,0.00519407]
[1736116850347,0.182276,98752.0,98743.0,0.00519407]
[1736116850595,0.182279,98750.0,98743.0,0.00519407]
[1736116850803,0.182287,98746.0,98743.0,0.00519407]